[Event "Late-Titled-Tuesday-Blitz-January-16-2024"]
[Site "Chess.com"]
[Date "2024.01.16"]
[Round "3"]
[White "danshev16"]
[Black "mbojan"]
[Result "0-1"]
[WhiteElo "2525"]
[BlackElo "2854"]
[TimeControl "180+1"]
[EndTime "14:26:52 PST"]
[Termination "mbojan won by resignation"]

1. d3 {[%clk 0:03:00.8]} 1... g6 {[%clk 0:03:00.9]} 2. c3 {[%clk 0:03:01.6]}
2... Bg7 {[%clk 0:03:01.1]} 3. Nd2 {[%clk 0:03:02.3]} 3... d6 {[%clk 0:03:01.8]}
4. h3 {[%clk 0:03:03.1]} 4... e5 {[%clk 0:03:01.1]} 5. g4 {[%clk 0:03:03.7]}
5... Nc6 {[%clk 0:03:00.9]} 6. Bg2 {[%clk 0:03:04.6]} 6... h5 {[%clk 0:03:01.2]}
7. Qb3 {[%clk 0:03:04.7]} 7... hxg4 {[%clk 0:02:58.1]} 8. hxg4 {[%clk
0:03:05.6]} 8... Rxh1 {[%clk 0:02:58.4]} 9. Bxh1 {[%clk 0:03:06.5]} 9... Nh6
{[%clk 0:02:55.6]} 10. Bd5 {[%clk 0:03:01.6]} 10... Qe7 {[%clk 0:02:38.8]} 11.
f3 {[%clk 0:02:51.5]} 11... Nd8 {[%clk 0:02:37.7]} 12. Ne4 {[%clk 0:02:42.1]}
12... c6 {[%clk 0:02:36.4]} 13. Bg5 {[%clk 0:02:42]} 13... f6 {[%clk 0:02:37]}
14. Bxh6 {[%clk 0:02:34.8]} 14... Bxh6 {[%clk 0:02:36.6]} 15. Bg8 {[%clk
0:02:30.7]} 15... d5 {[%clk 0:02:36.4]} 16. Bxd5 {[%clk 0:02:25.5]} 16... cxd5
{[%clk 0:02:35.4]} 17. Qxd5 {[%clk 0:02:26.4]} 17... Be6 {[%clk 0:02:35.6]} 18.
Qb5+ {[%clk 0:02:24.4]} 18... Bd7 {[%clk 0:02:31.5]} 19. Qb3 {[%clk 0:02:20.9]}
19... Be6 {[%clk 0:02:26]} 20. Qb5+ {[%clk 0:02:20.8]} 20... Kf8 {[%clk
0:02:26.4]} 21. Nh3 {[%clk 0:02:19]} 21... Be3 {[%clk 0:02:25.4]} 22. d4 {[%clk
0:02:10.5]} 22... exd4 {[%clk 0:02:04.6]} 23. cxd4 {[%clk 0:02:10.3]} 23... Rc8
{[%clk 0:02:04.5]} 24. d5 {[%clk 0:02:08.7]} 24... Bd7 {[%clk 0:01:56.1]} 25.
Qd3 {[%clk 0:02:08.6]} 25... Bh6 {[%clk 0:01:48.5]} 26. Rd1 {[%clk 0:02:01.5]}
26... f5 {[%clk 0:01:47.6]} 27. d6 {[%clk 0:01:55.3]} 27... Qe5 {[%clk
0:01:42.1]} 28. Nef2 {[%clk 0:01:41.9]} 28... Nf7 {[%clk 0:01:42.1]} 29. gxf5
{[%clk 0:01:34.5]} 29... gxf5 {[%clk 0:01:39]} 30. Qd4 {[%clk 0:01:17.8]} 30...
Qxd4 {[%clk 0:01:36.3]} 31. Rxd4 {[%clk 0:01:18.7]} 31... Rc1+ {[%clk
0:01:36.6]} 32. Nd1 {[%clk 0:01:18.8]} 32... Be3 {[%clk 0:01:21.3]} 33. Rd3
{[%clk 0:01:18.3]} 33... f4 {[%clk 0:01:17.1]} 34. Nf2 {[%clk 0:01:13.6]} 34...
Bf5 {[%clk 0:01:06]} 35. Rd5 {[%clk 0:01:02.2]} 35... Bc2 {[%clk 0:01:02.8]} 36.
Ne4 {[%clk 0:00:58.4]} 36... Rxd1+ {[%clk 0:00:51.9]} 37. Rxd1 {[%clk
0:00:56.3]} 37... Bxd1 {[%clk 0:00:52.8]} 38. Kxd1 {[%clk 0:00:57.1]} 38... Ke8
{[%clk 0:00:53.5]} 39. Kc2 {[%clk 0:00:53]} 39... Kd7 {[%clk 0:00:54]} 40. Kd3
{[%clk 0:00:53.2]} 40... Nxd6 {[%clk 0:00:54.6]} 41. Nf6+ {[%clk 0:00:53.7]}
41... Kc6 {[%clk 0:00:55.2]} 42. Ng4 {[%clk 0:00:49.1]} 42... Nf5 {[%clk
0:00:52.5]} 43. Ne5+ {[%clk 0:00:48.7]} 43... Kd5 {[%clk 0:00:52.3]} 44. Nc4
{[%clk 0:00:45]} 44... Bc5 {[%clk 0:00:52.3]} 45. Nd2 {[%clk 0:00:43.9]} 45...
Nd6 {[%clk 0:00:51.4]} 46. a3 {[%clk 0:00:42.5]} 46... a5 {[%clk 0:00:50.7]} 47.
Nf1 {[%clk 0:00:39.9]} 47... Nc4 {[%clk 0:00:48.1]} 48. Kc2 {[%clk 0:00:36.4]}
48... Ne3+ {[%clk 0:00:47.8]} 49. Nxe3+ {[%clk 0:00:35.7]} 49... Bxe3 {[%clk
0:00:48.7]} 50. b4 {[%clk 0:00:34.7]} 50... axb4 {[%clk 0:00:48.1]} 51. axb4
{[%clk 0:00:35.6]} 51... Kc4 {[%clk 0:00:48.6]} 52. b5 {[%clk 0:00:35.5]} 52...
Kxb5 {[%clk 0:00:49.1]} 0-1

[Event "Late-Titled-Tuesday-Blitz-January-16-2024"]
[Site "Chess.com"]
[Date "2024.01.16"]
[Round "3"]
[White "Pitomina-inactive"]
[Black "kenta1234"]
[Result "0-1"]
[WhiteElo "2546"]
[BlackElo "2774"]
[TimeControl "180+1"]
[EndTime "14:26:55 PST"]
[Termination "kenta1234 won by checkmate"]

1. g4 {[%clk 0:03:00.9]} 1... d6 {[%clk 0:02:58.7]} 2. Bg2 {[%clk 0:02:54.7]}
2... Nc6 {[%clk 0:02:58.3]} 3. h3 {[%clk 0:02:53.9]} 3... h5 {[%clk 0:02:57.9]}
4. g5 {[%clk 0:02:50.5]} 4... e5 {[%clk 0:02:57.8]} 5. d3 {[%clk 0:02:46]} 5...
Nge7 {[%clk 0:02:55.8]} 6. h4 {[%clk 0:02:40.3]} 6... Be6 {[%clk 0:02:54.6]} 7.
c4 {[%clk 0:02:35.8]} 7... Nf5 {[%clk 0:02:52.8]} 8. Nc3 {[%clk 0:02:28.7]} 8...
f6 {[%clk 0:02:48.1]} 9. Nh3 {[%clk 0:01:49.7]} 9... Nxh4 {[%clk 0:02:44.7]} 10.
Bd5 {[%clk 0:01:42.1]} 10... Qd7 {[%clk 0:02:34.9]} 11. Bxe6 {[%clk 0:01:37.1]}
11... Qxe6 {[%clk 0:02:34.7]} 12. Nd5 {[%clk 0:01:37.9]} 12... O-O-O {[%clk
0:02:34.1]} 13. Be3 {[%clk 0:01:37.4]} 13... Ng2+ {[%clk 0:02:33.3]} 14. Kd2
{[%clk 0:01:31.7]} 14... f5 {[%clk 0:02:30.7]} 15. Rh2 {[%clk 0:01:25.9]} 15...
Nxe3 {[%clk 0:02:28.6]} 16. fxe3 {[%clk 0:01:25.7]} 16... Ne7 {[%clk 0:02:27.9]}
17. Qa4 {[%clk 0:01:19.8]} 17... Kb8 {[%clk 0:02:21.7]} 18. Nc3 {[%clk 0:01:15]}
18... g6 {[%clk 0:02:17.5]} 19. Rhh1 {[%clk 0:01:09.2]} 19... Bg7 {[%clk
0:02:17.3]} 20. e4 {[%clk 0:01:07.2]} 20... fxe4 {[%clk 0:02:14.2]} 21. Nxe4
{[%clk 0:01:05]} 21... d5 {[%clk 0:02:12.7]} 22. cxd5 {[%clk 0:01:04.4]} 22...
Nxd5 {[%clk 0:02:12.7]} 23. Rac1 {[%clk 0:00:59.6]} 23... Nb6 {[%clk 0:02:09.8]}
24. Qb3 {[%clk 0:00:52.2]} 24... Qxb3 {[%clk 0:02:07.9]} 25. axb3 {[%clk
0:00:53.1]} 25... Rhf8 {[%clk 0:02:08]} 26. Ng1 {[%clk 0:00:46.3]} 26... Rf4
{[%clk 0:02:05.2]} 27. Nf3 {[%clk 0:00:45.8]} 27... Rxe4 {[%clk 0:02:05.2]} 28.
Nh4 {[%clk 0:00:39]} 28... Rg4 {[%clk 0:02:02.1]} 29. Rcg1 {[%clk 0:00:35.7]}
29... Rxg1 {[%clk 0:02:01.6]} 30. Rxg1 {[%clk 0:00:36.2]} 30... Rd4 {[%clk
0:01:49.4]} 31. Nxg6 {[%clk 0:00:34.4]} 31... Rg4 {[%clk 0:01:49.6]} 32. Rxg4
{[%clk 0:00:26.5]} 32... hxg4 {[%clk 0:01:50.5]} 33. Ke3 {[%clk 0:00:25.9]}
33... Kc8 {[%clk 0:01:46.5]} 34. Nh4 {[%clk 0:00:26.6]} 34... Nd5+ {[%clk
0:01:37.2]} 35. Ke4 {[%clk 0:00:25.7]} 35... Nf4 {[%clk 0:01:37.4]} 36. Nf5
{[%clk 0:00:20.6]} 36... Bh8 {[%clk 0:01:33.4]} 37. e3 {[%clk 0:00:21.2]} 37...
Ng6 {[%clk 0:01:33]} 38. Nh6 {[%clk 0:00:19.4]} 38... g3 {[%clk 0:01:31]} 39.
Kf3 {[%clk 0:00:20.1]} 39... e4+ {[%clk 0:01:26.6]} 40. dxe4 {[%clk 0:00:19.5]}
40... Bxb2 {[%clk 0:01:27.2]} 41. Kxg3 {[%clk 0:00:19.9]} 41... b5 {[%clk
0:01:27.3]} 42. Kg4 {[%clk 0:00:20.3]} 42... a5 {[%clk 0:01:26.6]} 43. Kf5
{[%clk 0:00:20.9]} 43... Ne7+ {[%clk 0:01:23.3]} 44. Ke6 {[%clk 0:00:20.1]}
44... Kd8 {[%clk 0:01:19.2]} 45. Nf7+ {[%clk 0:00:19.7]} 45... Ke8 {[%clk
0:01:19.8]} 46. e5 {[%clk 0:00:17.5]} 46... a4 {[%clk 0:01:16.4]} 47. bxa4
{[%clk 0:00:18.4]} 47... bxa4 {[%clk 0:01:17]} 48. Nd6+ {[%clk 0:00:18.5]} 48...
cxd6 {[%clk 0:01:16]} 49. exd6 {[%clk 0:00:19.4]} 49... Ng6 {[%clk 0:01:14]} 50.
Kf5 {[%clk 0:00:18.8]} 50... Nh4+ {[%clk 0:01:13.1]} 51. Ke6 {[%clk 0:00:16.4]}
51... a3 {[%clk 0:01:12.3]} 52. g6 {[%clk 0:00:17.3]} 52... Nxg6 {[%clk
0:01:12.1]} 53. d7+ {[%clk 0:00:18.2]} 53... Kd8 {[%clk 0:01:12.2]} 54. Kf7
{[%clk 0:00:19]} 54... Ne5+ {[%clk 0:01:12.1]} 55. Kg8 {[%clk 0:00:19.9]} 55...
Nxd7 {[%clk 0:01:12.9]} 56. Kh7 {[%clk 0:00:20.4]} 56... a2 {[%clk 0:01:13.3]}
57. e4 {[%clk 0:00:20]} 57... a1=Q {[%clk 0:01:13.5]} 58. e5 {[%clk 0:00:20.9]}
58... Bxe5 {[%clk 0:01:13.4]} 59. Kg8 {[%clk 0:00:20.9]} 59... Qf1 {[%clk
0:01:10.8]} 60. Kh7 {[%clk 0:00:20.8]} 60... Qf7+ {[%clk 0:01:09.7]} 61. Kh6
{[%clk 0:00:21.7]} 61... Bf4# {[%clk 0:01:10.2]} 0-1

[Event "Late-Titled-Tuesday-Blitz-January-16-2024"]
[Site "Chess.com"]
[Date "2024.01.16"]
[Round "3"]
[White "Rodalquilar"]
[Black "JuniorJumper"]
[Result "1-0"]
[WhiteElo "2742"]
[BlackElo "2512"]
[TimeControl "180+1"]
[EndTime "14:26:55 PST"]
[Termination "Rodalquilar won by checkmate"]

1. d4 {[%clk 0:03:00.9]} 1... d5 {[%clk 0:02:20.5]} 2. Nf3 {[%clk 0:03:00]} 2...
e6 {[%clk 0:02:21.1]} 3. Bf4 {[%clk 0:03:00]} 3... Bd6 {[%clk 0:02:21.1]} 4. e3
{[%clk 0:03:00.6]} 4... Nf6 {[%clk 0:02:20.7]} 5. Nbd2 {[%clk 0:02:57.2]} 5...
O-O {[%clk 0:02:21.2]} 6. c3 {[%clk 0:02:55.9]} 6... c5 {[%clk 0:02:21.8]} 7.
Bd3 {[%clk 0:02:55.5]} 7... b6 {[%clk 0:02:22.4]} 8. Bxd6 {[%clk 0:02:51.3]}
8... Qxd6 {[%clk 0:02:22.3]} 9. e4 {[%clk 0:02:51.9]} 9... Qe7 {[%clk 0:02:14]}
10. e5 {[%clk 0:02:51.8]} 10... Nfd7 {[%clk 0:02:14]} 11. Qe2 {[%clk 0:02:47.9]}
11... a5 {[%clk 0:02:11.3]} 12. h4 {[%clk 0:02:37.5]} 12... h6 {[%clk 0:01:36]}
13. g4 {[%clk 0:02:30.6]} 13... Ba6 {[%clk 0:01:31.7]} 14. Bxa6 {[%clk
0:02:30.3]} 14... Nxa6 {[%clk 0:01:32.2]} 15. a3 {[%clk 0:02:30.1]} 15... g6
{[%clk 0:01:23.2]} 16. Qe3 {[%clk 0:02:29.3]} 16... Kh7 {[%clk 0:01:14.2]} 17.
Qf4 {[%clk 0:02:17.5]} 17... Rac8 {[%clk 0:01:06.1]} 18. Qe3 {[%clk 0:01:58.8]}
18... cxd4 {[%clk 0:01:05.7]} 19. cxd4 {[%clk 0:01:59]} 19... a4 {[%clk
0:01:01.2]} 20. Qd3 {[%clk 0:01:59]} 20... Nc7 {[%clk 0:00:51.7]} 21. h5 {[%clk
0:01:59.3]} 21... Kg7 {[%clk 0:00:46.7]} 22. g5 {[%clk 0:01:51.9]} 22... Rh8
{[%clk 0:00:39.9]} 23. Rg1 {[%clk 0:01:46.3]} 23... hxg5 {[%clk 0:00:38.7]} 24.
hxg6 {[%clk 0:01:46.8]} 24... f5 {[%clk 0:00:34.7]} 25. Nxg5 {[%clk 0:01:29]}
25... Nf8 {[%clk 0:00:30.8]} 26. Nf7 {[%clk 0:01:22.5]} 26... Rh4 {[%clk
0:00:26.9]} 27. Nd6 {[%clk 0:01:21.5]} 27... Ra8 {[%clk 0:00:25.4]} 28. Qxf5
{[%clk 0:01:06.8]} 28... Rxd4 {[%clk 0:00:23.8]} 29. Rc1 {[%clk 0:00:45]} 29...
Ne8 {[%clk 0:00:12.3]} 30. Qf7+ {[%clk 0:00:43.9]} 30... Qxf7 {[%clk 0:00:09.5]}
31. gxf7+ {[%clk 0:00:44.2]} 31... Ng6 {[%clk 0:00:09.6]} 32. fxe8=Q {[%clk
0:00:42.3]} 32... Rxe8 {[%clk 0:00:09.5]} 33. Nxe8+ {[%clk 0:00:42.8]} 33... Kf7
{[%clk 0:00:10.4]} 34. Nd6+ {[%clk 0:00:43.1]} 34... Kg7 {[%clk 0:00:10.6]} 35.
Rc7+ {[%clk 0:00:42.6]} 35... Kh6 {[%clk 0:00:11.2]} 36. Nf7+ {[%clk 0:00:43.1]}
36... Kh5 {[%clk 0:00:11.3]} 37. Rg5+ {[%clk 0:00:43.4]} 37... Kh4 {[%clk
0:00:11]} 38. Nf3+ {[%clk 0:00:43.8]} 38... Kh3 {[%clk 0:00:10.8]} 39. Rg3#
{[%clk 0:00:44.2]} 1-0

[Event "Late-Titled-Tuesday-Blitz-January-16-2024"]
[Site "Chess.com"]
[Date "2024.01.16"]
[Round "3"]
[White "santosalberto1987"]
[Black "Korchmar_Vasiliy"]
[Result "0-1"]
[WhiteElo "2506"]
[BlackElo "2726"]
[TimeControl "180+1"]
[EndTime "14:26:55 PST"]
[Termination "Korchmar_Vasiliy won by resignation"]

1. e4 {[%clk 0:03:00.9]} 1... c5 {[%clk 0:02:59.9]} 2. Nf3 {[%clk 0:03:00.6]}
2... d6 {[%clk 0:03:00]} 3. Bb5+ {[%clk 0:02:58.8]} 3... Bd7 {[%clk 0:02:59.3]}
4. c4 {[%clk 0:02:48.9]} 4... g6 {[%clk 0:02:57.1]} 5. Nc3 {[%clk 0:02:47.6]}
5... Bg7 {[%clk 0:02:57.5]} 6. Bxd7+ {[%clk 0:02:47.4]} 6... Qxd7 {[%clk
0:02:57.1]} 7. d4 {[%clk 0:02:47.4]} 7... cxd4 {[%clk 0:02:56.5]} 8. Nxd4 {[%clk
0:02:48.3]} 8... Nc6 {[%clk 0:02:56.4]} 9. Be3 {[%clk 0:02:47.7]} 9... Nf6
{[%clk 0:02:56.7]} 10. f3 {[%clk 0:02:47.9]} 10... O-O {[%clk 0:02:54.8]} 11. b3
{[%clk 0:02:47.8]} 11... Rac8 {[%clk 0:02:20.6]} 12. Rc1 {[%clk 0:02:46.5]}
12... Rfd8 {[%clk 0:02:20.5]} 13. O-O {[%clk 0:02:45.7]} 13... e6 {[%clk
0:02:19.7]} 14. Qd2 {[%clk 0:02:43.6]} 14... Qe8 {[%clk 0:02:08.3]} 15. Rfe1
{[%clk 0:02:38.1]} 15... Qf8 {[%clk 0:02:06.9]} 16. Qf2 {[%clk 0:02:24.1]} 16...
a6 {[%clk 0:01:59.2]} 17. Red1 {[%clk 0:02:08.2]} 17... Ne5 {[%clk 0:01:49]} 18.
h3 {[%clk 0:02:03.7]} 18... Nfd7 {[%clk 0:01:38.7]} 19. f4 {[%clk 0:02:01]}
19... Nc6 {[%clk 0:01:39]} 20. Nxc6 {[%clk 0:01:39]} 20... Rxc6 {[%clk 0:01:34]}
21. Bd4 {[%clk 0:01:33.7]} 21... Rdc8 {[%clk 0:01:22.2]} 22. Bxg7 {[%clk
0:01:29.5]} 22... Qxg7 {[%clk 0:01:23.1]} 23. Ne2 {[%clk 0:01:15.9]} 23... Nc5
{[%clk 0:01:02.8]} 24. Qe3 {[%clk 0:01:11]} 24... Qb2 {[%clk 0:00:58.9]} 25. Rd2
{[%clk 0:01:07.5]} 25... Qa3 {[%clk 0:00:58.3]} 26. Rcd1 {[%clk 0:01:05.6]}
26... Nd7 {[%clk 0:00:44.6]} 27. e5 {[%clk 0:00:55.9]} 27... Rxc4 {[%clk
0:00:37]} 28. Rxd6 {[%clk 0:00:48.1]} 28... Nf8 {[%clk 0:00:36]} 29. R1d2 {[%clk
0:00:33.1]} 29... Rc2 {[%clk 0:00:28.3]} 30. Nd4 {[%clk 0:00:12.3]} 30... Qc1+
{[%clk 0:00:27]} 0-1

[Event "Late-Titled-Tuesday-Blitz-January-16-2024"]
[Site "Chess.com"]
[Date "2024.01.16"]
[Round "3"]
[White "chucksterf10"]
[Black "Machteldvf"]
[Result "1/2-1/2"]
[WhiteElo "2629"]
[BlackElo "2472"]
[TimeControl "180+1"]
[EndTime "14:26:56 PST"]
[Termination "Game drawn - insufficient material"]

1. b3 {[%clk 0:03:00.9]} 1... Nf6 {[%clk 0:02:58.6]} 2. Bb2 {[%clk 0:03:01.8]}
2... b6 {[%clk 0:02:56.5]} 3. Nf3 {[%clk 0:02:58.9]} 3... Bb7 {[%clk 0:02:55.9]}
4. e3 {[%clk 0:02:59.8]} 4... e6 {[%clk 0:02:55.7]} 5. Be2 {[%clk 0:02:57.7]}
5... c5 {[%clk 0:02:55.8]} 6. O-O {[%clk 0:02:58.2]} 6... Be7 {[%clk 0:02:56]}
7. c4 {[%clk 0:02:58.9]} 7... O-O {[%clk 0:02:55.9]} 8. Nc3 {[%clk 0:02:59.1]}
8... Nc6 {[%clk 0:02:56.1]} 9. d4 {[%clk 0:02:59.7]} 9... cxd4 {[%clk
0:02:54.5]} 10. Nxd4 {[%clk 0:03:00.6]} 10... d5 {[%clk 0:02:43.5]} 11. cxd5
{[%clk 0:03:00.1]} 11... Nxd5 {[%clk 0:02:42.7]} 12. Nxd5 {[%clk 0:02:59.9]}
12... exd5 {[%clk 0:02:30.3]} 13. Rc1 {[%clk 0:02:59.1]} 13... Nxd4 {[%clk
0:02:28.1]} 14. Qxd4 {[%clk 0:02:58.5]} 14... Bf6 {[%clk 0:02:27.1]} 15. Qd2
{[%clk 0:02:59]} 15... Bxb2 {[%clk 0:02:24.8]} 16. Qxb2 {[%clk 0:02:59.9]} 16...
Rc8 {[%clk 0:02:07.9]} 17. Bf3 {[%clk 0:02:57.8]} 17... Qd7 {[%clk 0:02:02.3]}
18. Qd4 {[%clk 0:02:58]} 18... Rxc1 {[%clk 0:01:59.9]} 19. Rxc1 {[%clk
0:02:58.9]} 19... Rc8 {[%clk 0:01:59.5]} 20. Re1 {[%clk 0:02:59.3]} 20... Rc2
{[%clk 0:01:57.8]} 21. a4 {[%clk 0:02:58.6]} 21... Qf5 {[%clk 0:01:56.3]} 22. h4
{[%clk 0:02:55.2]} 22... h6 {[%clk 0:01:51.6]} 23. Rd1 {[%clk 0:02:55]} 23...
Bc6 {[%clk 0:01:42.4]} 24. Rd2 {[%clk 0:02:50.2]} 24... Rxd2 {[%clk 0:01:34.3]}
25. Qxd2 {[%clk 0:02:51.1]} 25... Qb1+ {[%clk 0:01:34.8]} 26. Qd1 {[%clk
0:02:50.3]} 26... Qxd1+ {[%clk 0:01:32.8]} 27. Bxd1 {[%clk 0:02:51.2]} 27... Kf8
{[%clk 0:01:32.4]} 28. Kf1 {[%clk 0:02:49.9]} 28... Ke7 {[%clk 0:01:32.8]} 29.
Ke2 {[%clk 0:02:49.6]} 29... Kd6 {[%clk 0:01:33.7]} 30. Kd3 {[%clk 0:02:50.1]}
30... d4 {[%clk 0:01:33]} 31. e4 {[%clk 0:02:48.6]} 31... Ke5 {[%clk 0:01:31.3]}
32. g3 {[%clk 0:02:48.6]} 32... Bxe4+ {[%clk 0:01:31.3]} 33. Kd2 {[%clk
0:02:47.9]} 33... d3 {[%clk 0:01:31.8]} 34. Ke3 {[%clk 0:02:47.7]} 34... Bg6
{[%clk 0:01:26.7]} 35. h5 {[%clk 0:02:47.3]} 35... Bh7 {[%clk 0:01:26.5]} 36. b4
{[%clk 0:02:46.1]} 36... Kd5 {[%clk 0:01:26.5]} 37. Bb3+ {[%clk 0:02:45.6]}
37... Kc6 {[%clk 0:01:16.1]} 38. Bxf7 {[%clk 0:02:46.5]} 38... a5 {[%clk
0:01:16.5]} 39. bxa5 {[%clk 0:02:37.3]} 39... bxa5 {[%clk 0:01:17.4]} 40. Bc4
{[%clk 0:02:36.6]} 40... Kc5 {[%clk 0:01:14.2]} 41. Bxd3 {[%clk 0:02:36.7]}
41... Bxd3 {[%clk 0:00:52.3]} 42. Kxd3 {[%clk 0:02:37.6]} 42... Kb4 {[%clk
0:00:53.2]} 43. g4 {[%clk 0:02:37.6]} 43... Kxa4 {[%clk 0:00:54.1]} 44. Kc4
{[%clk 0:02:37.5]} 44... Ka3 {[%clk 0:00:53.8]} 45. Kc3 {[%clk 0:02:38.1]} 45...
Ka4 {[%clk 0:00:51.2]} 46. Kc4 {[%clk 0:02:32]} 46... Ka3 {[%clk 0:00:51]} 47.
f4 {[%clk 0:02:29.7]} 47... Kb2 {[%clk 0:00:35.1]} 48. Kb5 {[%clk 0:02:29.6]}
48... Kc3 {[%clk 0:00:35.2]} 49. g5 {[%clk 0:02:29.9]} 49... Kd4 {[%clk
0:00:27.9]} 50. f5 {[%clk 0:02:30.2]} 50... hxg5 {[%clk 0:00:27.8]} 51. f6
{[%clk 0:02:30]} 51... gxf6 {[%clk 0:00:26.4]} 52. h6 {[%clk 0:02:30.5]} 52...
g4 {[%clk 0:00:26.7]} 53. h7 {[%clk 0:02:31.4]} 53... f5 {[%clk 0:00:24.5]} 54.
h8=Q+ {[%clk 0:02:31.3]} 54... Ke4 {[%clk 0:00:25]} 55. Qe8+ {[%clk 0:02:27.6]}
55... Kf3 {[%clk 0:00:25.2]} 56. Qa8+ {[%clk 0:02:26]} 56... Kg3 {[%clk
0:00:20.9]} 57. Qb8+ {[%clk 0:02:25.9]} 57... f4 {[%clk 0:00:21.3]} 58. Kxa5
{[%clk 0:02:25.7]} 58... Kf3 {[%clk 0:00:19.7]} 59. Qb3+ {[%clk 0:02:25.4]}
59... Kf2 {[%clk 0:00:19.9]} 60. Qc2+ {[%clk 0:02:24.4]} 60... Kg3 {[%clk
0:00:20.1]} 61. Kb4 {[%clk 0:02:23.4]} 61... f3 {[%clk 0:00:20.4]} 62. Kc3
{[%clk 0:02:13.8]} 62... f2 {[%clk 0:00:20.7]} 63. Qd3+ {[%clk 0:02:13.4]} 63...
Kg2 {[%clk 0:00:19]} 64. Qe4+ {[%clk 0:02:13.8]} 64... Kg1 {[%clk 0:00:13.8]}
65. Qxg4+ {[%clk 0:02:13.7]} 65... Kh1 {[%clk 0:00:14.2]} 66. Qh3+ {[%clk
0:02:12.8]} 66... Kg1 {[%clk 0:00:14.5]} 67. Qg3+ {[%clk 0:02:13.3]} 67... Kh1
{[%clk 0:00:14.9]} 68. Qh4+ {[%clk 0:02:12.1]} 68... Kg1 {[%clk 0:00:15.3]} 69.
Qg4+ {[%clk 0:02:12.4]} 69... Kh1 {[%clk 0:00:15.5]} 70. Qf3+ {[%clk 0:02:08.5]}
70... Kg1 {[%clk 0:00:15.8]} 71. Qe3 {[%clk 0:02:08.6]} 71... Kh1 {[%clk
0:00:15.7]} 72. Qe4+ {[%clk 0:02:08.6]} 72... Kg1 {[%clk 0:00:16]} 73. Qd4
{[%clk 0:02:09.5]} 73... Kh1 {[%clk 0:00:16.3]} 74. Qd5+ {[%clk 0:02:10.4]}
74... Kg1 {[%clk 0:00:15.7]} 75. Qc5 {[%clk 0:02:11.3]} 75... Kh1 {[%clk
0:00:16.3]} 76. Qc6+ {[%clk 0:02:12.2]} 76... Kg1 {[%clk 0:00:17]} 77. Qb6
{[%clk 0:02:13.1]} 77... Kh1 {[%clk 0:00:17.7]} 78. Qb7+ {[%clk 0:02:14]} 78...
Kg1 {[%clk 0:00:18.4]} 79. Qa7 {[%clk 0:02:14.9]} 79... Kh1 {[%clk 0:00:19]} 80.
Qa8+ {[%clk 0:02:15.8]} 80... Kg1 {[%clk 0:00:19.5]} 81. Qg8+ {[%clk 0:02:16.4]}
81... Kh1 {[%clk 0:00:19.7]} 82. Qf7 {[%clk 0:02:16.1]} 82... Kg1 {[%clk
0:00:19.9]} 83. Qg7+ {[%clk 0:02:17]} 83... Kh1 {[%clk 0:00:20.4]} 84. Qf6
{[%clk 0:02:17.9]} 84... Kg1 {[%clk 0:00:21.1]} 85. Qg6+ {[%clk 0:02:18.8]}
85... Kh1 {[%clk 0:00:21.8]} 86. Qf5 {[%clk 0:02:19.4]} 86... Kg1 {[%clk
0:00:22.4]} 87. Qg5+ {[%clk 0:02:20.3]} 87... Kh1 {[%clk 0:00:23.1]} 88. Qh4+
{[%clk 0:02:19.7]} 88... Kg1 {[%clk 0:00:23.4]} 89. Qg3+ {[%clk 0:02:20.3]}
89... Kh1 {[%clk 0:00:24]} 90. Kd2 {[%clk 0:02:15.9]} 90... f1=N+ {[%clk
0:00:21.3]} 91. Ke2 {[%clk 0:02:15.5]} 91... Nxg3+ {[%clk 0:00:22.2]} 1/2-1/2

[Event "Late-Titled-Tuesday-Blitz-January-16-2024"]
[Site "Chess.com"]
[Date "2024.01.16"]
[Round "3"]
[White "krzyzan94"]
[Black "LyonBeast"]
[Result "0-1"]
[WhiteElo "2817"]
[BlackElo "3167"]
[TimeControl "180+1"]
[EndTime "14:26:57 PST"]
[Termination "LyonBeast won by resignation"]

1. e4 {[%clk 0:03:00.9]} 1... c5 {[%clk 0:02:56.8]} 2. Nf3 {[%clk 0:03:01.3]}
2... Nc6 {[%clk 0:02:51.6]} 3. Bb5 {[%clk 0:03:00.5]} 3... g6 {[%clk 0:02:50.8]}
4. O-O {[%clk 0:02:59.4]} 4... Bg7 {[%clk 0:02:51.3]} 5. Re1 {[%clk 0:02:59.7]}
5... Nf6 {[%clk 0:02:51.4]} 6. Bxc6 {[%clk 0:02:46.9]} 6... dxc6 {[%clk
0:02:49.1]} 7. e5 {[%clk 0:02:44.4]} 7... Nd5 {[%clk 0:02:46.5]} 8. d3 {[%clk
0:02:42]} 8... O-O {[%clk 0:02:41.6]} 9. h3 {[%clk 0:02:40.7]} 9... h6 {[%clk
0:02:34.1]} 10. a4 {[%clk 0:02:40]} 10... Be6 {[%clk 0:02:30.1]} 11. Nbd2 {[%clk
0:02:36.9]} 11... b6 {[%clk 0:02:26.3]} 12. Ne4 {[%clk 0:02:28.6]} 12... Qd7
{[%clk 0:02:25.3]} 13. Bd2 {[%clk 0:02:26.4]} 13... f5 {[%clk 0:02:18.1]} 14.
exf6 {[%clk 0:02:19.4]} 14... exf6 {[%clk 0:02:19]} 15. Ng3 {[%clk 0:01:54.8]}
15... Rae8 {[%clk 0:02:16.6]} 16. a5 {[%clk 0:01:47.7]} 16... Bf7 {[%clk
0:02:11.5]} 17. axb6 {[%clk 0:01:46.6]} 17... axb6 {[%clk 0:02:11.3]} 18. Rxe8
{[%clk 0:01:29.9]} 18... Rxe8 {[%clk 0:02:12.2]} 19. c4 {[%clk 0:01:28.7]} 19...
Nb4 {[%clk 0:01:58.6]} 20. Bxb4 {[%clk 0:01:24.2]} 20... cxb4 {[%clk 0:01:59.5]}
21. b3 {[%clk 0:01:14.9]} 21... f5 {[%clk 0:01:57.3]} 22. Ra2 {[%clk 0:01:12.8]}
22... f4 {[%clk 0:01:49.9]} 23. Nf1 {[%clk 0:01:08.2]} 23... c5 {[%clk
0:01:45.3]} 24. Re2 {[%clk 0:00:33.2]} 24... g5 {[%clk 0:01:45]} 25. Rxe8+
{[%clk 0:00:20.1]} 25... Bxe8 {[%clk 0:01:45.9]} 26. d4 {[%clk 0:00:19.4]} 26...
cxd4 {[%clk 0:01:44]} 27. Qd3 {[%clk 0:00:18.8]} 27... Qd6 {[%clk 0:01:44.1]}
28. N1d2 {[%clk 0:00:18.7]} 28... Bg6 {[%clk 0:01:43.4]} 29. Ne4 {[%clk
0:00:16]} 29... Qe6 {[%clk 0:01:41.7]} 30. Nfd2 {[%clk 0:00:16.3]} 30... h5
{[%clk 0:01:35.2]} 31. f3 {[%clk 0:00:16.5]} 31... g4 {[%clk 0:01:34.8]} 32.
hxg4 {[%clk 0:00:14.9]} 32... hxg4 {[%clk 0:01:35.7]} 33. Qe2 {[%clk 0:00:13.8]}
33... g3 {[%clk 0:01:31.4]} 34. Qd1 {[%clk 0:00:10.6]} 34... d3 {[%clk
0:01:30.1]} 35. Kf1 {[%clk 0:00:08.3]} 35... Bf5 {[%clk 0:01:25.1]} 36. Qb1
{[%clk 0:00:08.2]} 36... Qh6 {[%clk 0:01:24.9]} 37. Qxd3 {[%clk 0:00:08.2]}
37... Qh1+ {[%clk 0:01:24.9]} 38. Ke2 {[%clk 0:00:09.1]} 38... Qxg2+ {[%clk
0:01:25.3]} 39. Kd1 {[%clk 0:00:09.6]} 39... Qg1+ {[%clk 0:01:24.5]} 40. Kc2
{[%clk 0:00:09.6]} 40... Qd4 {[%clk 0:01:24.3]} 41. Qe2 {[%clk 0:00:06.3]} 41...
Qb2+ {[%clk 0:01:22.5]} 42. Kd1 {[%clk 0:00:06.3]} 42... Qa1+ {[%clk 0:01:20.6]}
43. Kc2 {[%clk 0:00:06.5]} 43... Bc3 {[%clk 0:01:04.3]} 44. Qd3 {[%clk
0:00:05.6]} 44... Qb2+ {[%clk 0:01:02.1]} 45. Kd1 {[%clk 0:00:05.9]} 45... Qxd2+
{[%clk 0:00:59.8]} 46. Qxd2 {[%clk 0:00:04.7]} 46... Bxd2 {[%clk 0:01:00.1]} 47.
Nxd2 {[%clk 0:00:02.3]} 47... g2 {[%clk 0:01:00.4]} 0-1